Workbook

Sheet TOT-0216
B2: ANEXO V al Memorandum D.T.E.E. N° 687 / 2016
A4: ENTE NACIONAL REGULADOR
A5: DE LA ELECTRICIDAD
B7: SISTEMA DE TRANSPORTE DE ENERGÍA ELÉCTRICA POR DISTRIBUCIÓN TRONCAL
B9: EPEN
B11: =CONCATENATE("TOTAL DE PENALIZACIONES A ",IF(DATO!$F$1="E.N.R.E.","APLICAR","FORMULAR")) -> TOTAL DE PENALIZACIONES A APLICAR
B13: =IF(C13=TRUE,2,1) -> 1
B14: =DATO!F14 -> Desde el 01 al 29 de febrero de 2016
C18: 1.- | D18: LÍNEAS | I18: ='LI-02 (1)'!AB40 -> 235.54
C20: 2.- | D20: CONEXIÓN
D23: 2.2.- | E23: Salidas | I23: ='SA-02 (1)'!V42 -> 1229.34
F27: TOTAL | G27: =SUM(I18:I23) -> 1464.88
C29: Valores de remuneración según el Acuerdo Instrumental. Nota ENRE Nº 117663

Sheet LI-02 (1)
B2: =+'TOT-0216'!B2 -> ANEXO V al Memorandum D.T.E.E. N° 687 / 2016
D4: ENTE NACIONAL REGULADOR
D5: DE LA ELECTRICIDAD
F8: SISTEMA DE TRANSPORTE DE ENERGÍA ELÉCTRICA POR DISTRIBUCIÓN TRONCAL - EPEN
F10: 1.- LÍNEAS
B12: =+'TOT-0216'!B14 -> Desde el 01 al 29 de febrero de 2016
F14: $/100 km-h : LÍNEAS 132 kV | G14: 498.71 | K14: FACTOR DE PENALIZACIÓN K = | L14: =30*'TOT-0216'!B13 -> 30 | M14: =IF(L14=30," ",IF(L14=60,"Coeficiente duplicado por tasa de falla >4 Sal. x año/100 km.","REVISAR COEFICIENTE")) -> 
C15: 3 | D15: 4 | E15: 5 | F15: 6 | G15: 7 | H15: 8 | I15: 9 | J15: 10 | K15: 11 | L15: 12 | M15: 13 | N15: 14 | O15: 15 | P15: 16 | Q15: 17 | R15: 18 | S15: 19 | T15: 20 | U15: 21 | V15: 22 | W15: 23 | X15: 24 | Y15: 25 | Z15: 26 | AA15: 27 | AB15: 28
C16: N° | D16: INDISP | E16: ID EQUIPO | F16: LÍNEAS | G16: U [kV] | H16: Long. [km] | I16: $/h | J16: Salida | K16: Entrada | L16: Hs. Indisp. | M16: Minutos Indisp. | N16: Tipo Sal.(²) | O16: C.R. % | P16: AUT. | Q16: PENALIZ. PROGRAM. | R16: REDUCCIÓN PROGRAM. | S16: PENALIZACIÓN FORZADA Por Salida 1ras. 3 hs. hs. Restantes | V16: REDUCCIÓN FORZADA Por Salida 1ras. 3 hs. hs. Restantes | Y16: RESTANTE FORZADA (RF) | Z16: REDUCCIÓN RESTANTE (RR) | AA16: Informó en Térm. | AB16: TOTAL PENALIZAC.
C19: 1 | D19: 298680 | E19: 153 | F19: ARROYITO - EL CHOCON 1 | G19: 132 | H19: 25 | I19: =H19*$G$14/100 -> 124.6775 | J19: 2016-02-01T09:56:00 | K19: 2016-02-01T13:31:00 | L19: =IF(J19="","",(K19-J19)*24) -> 3.583333333 | M19: =IF(K19="","",ROUND((K19-J19)*24*60,0)) -> 215 | N19: P | O19: 0,000 | P19: =IF(F19="","",IF(OR(N19="P",N19="RP"),"--","NO")) -> -- | Q19: =IF(N19="P",ROUND(M19/60,2)*I19*$L$14*0.01,"--") -> 133.903635 | R19: =IF(N19="RP",ROUND(M19/60,2)*I19*$L$14*0.01*O19/100,"--") -> -- | S19: =IF(P19="SI","--",IF(N19="F",ROUND(I19*$L$14,2),"--")) -> -- | T19: =IF(N19="F",IF(M19<10,"--",IF(M19>180,ROUND(I19*$L$14*3,2),I19*$L$14*ROUND(M19/60,2))),"--") -> -- | U19: =IF(AND(N19="F",M19>180),I19*$L$14*0.1*(ROUND(M19/60,2)-3),"--") -> -- | V19: =IF(P19="SI","--",IF(N19="R",ROUND(I19*$L$14*O19/100,2),"--")) -> -- | W19: =IF(N19="R",IF(M19<10,"--",IF(M19>180,ROUND(I19*$L$14*3*O19/100,2),I19*$L$14*O19/100*ROUND(M19/60,2))),"--") -> -- | X19: =IF(AND(N19="R",M19>180),I19*$L$14*O19/100*0.1*(ROUND(M19/60,2)-3),"--") -> -- | Y19: =IF(N19="RF",I19*$L$14*0.1*ROUND(M19/60,2),"--") -> -- | Z19: =IF(N19="RR",I19*$L$14*0.1*O19/100*ROUND(M19/60,2),"--") -> -- | AA19: SI | AB19: =IF(F19="","",IF(AA19="SI",SUM(Q19:Z19),2*SUM(Q19:Z19))) -> 133.903635
C20: 2 | D20: 298681 | E20: 154 | F20: ARROYITO - EL CHOCON 2 | G20: 132 | H20: 25 | I20: =H20*$G$14/100 -> 124.6775 | J20: 2016-02-02T10:08:00 | K20: 2016-02-02T12:50:00 | L20: 2.7 | M20: 162 | N20: P | O20: 0,000 | P20: -- | Q20: 100.988775 | R20: -- | S20: -- | T20: -- | U20: -- | V20: -- | W20: -- | X20: -- | Y20: -- | Z20: -- | AA20: SI | AB20: 100.988775
C21: 3 | D21: 299489 | E21: 157 | F21: ARROYITO - C.H. ARROYITO 3 | G21: 132 | H21: 1 | I21: 4.9871 | J21: 2016-02-24T14:24:00 | K21: 2016-02-24T14:50:00 | L21: 0.4333333333 | M21: 26 | N21: P | O21: 0,000 | P21: -- | Q21: 0.6433359 | R21: -- | S21: -- | T21: -- | U21: -- | V21: -- | W21: -- | X21: -- | Y21: -- | Z21: -- | AA21: SI | AB21: 0.6433359
I22: 0 | O22: =IF(F22="","","--") ->  | P22: =IF(F22="","",IF(OR(N22="P",N22="RP"),"--","NO")) ->  | Q22: -- | R22: -- | S22: -- | T22: -- | U22: -- | V22: -- | W22: -- | X22: -- | Y22: -- | Z22: -- | AA22: =IF(F22="","","SI") -> 
I23: 0 | Q23: -- | R23: -- | S23: -- | T23: -- | U23: -- | V23: -- | W23: -- | X23: -- | Y23: -- | Z23: --
I24: 0 | Q24: -- | R24: -- | S24: -- | T24: -- | U24: -- | V24: -- | W24: -- | X24: -- | Y24: -- | Z24: --
I25: 0 | Q25: -- | R25: -- | S25: -- | T25: -- | U25: -- | V25: -- | W25: -- | X25: -- | Y25: -- | Z25: --
I26: 0 | Q26: -- | R26: -- | S26: -- | T26: -- | U26: -- | V26: -- | W26: -- | X26: -- | Y26: -- | Z26: -- | AA26: =IF(F26="","","SI") -> 
I27: 0 | Q27: -- | R27: -- | S27: -- | T27: -- | U27: -- | V27: -- | W27: -- | X27: -- | Y27: -- | Z27: --
I28: 0 | Q28: -- | R28: -- | S28: -- | T28: -- | U28: -- | V28: -- | W28: -- | X28: -- | Y28: -- | Z28: --
I29: 0 | Q29: -- | R29: -- | S29: -- | T29: -- | U29: -- | V29: -- | W29: -- | X29: -- | Y29: -- | Z29: --
I30: 0 | Q30: -- | R30: -- | S30: -- | T30: -- | U30: -- | V30: -- | W30: -- | X30: -- | Y30: -- | Z30: --
I31: 0 | O31: =IF(F31="","","--") ->  | Q31: -- | R31: -- | S31: -- | T31: -- | U31: -- | V31: -- | W31: -- | X31: -- | Y31: -- | Z31: --
I32: 0 | Q32: -- | R32: -- | S32: -- | T32: -- | U32: -- | V32: -- | W32: -- | X32: -- | Y32: -- | Z32: --
I33: 0 | Q33: -- | R33: -- | S33: -- | T33: -- | U33: -- | V33: -- | W33: -- | X33: -- | Y33: -- | Z33: --
I34: 0 | Q34: -- | R34: -- | S34: -- | T34: -- | U34: -- | V34: -- | W34: -- | X34: -- | Y34: -- | Z34: --
I35: 0 | Q35: -- | R35: -- | S35: -- | T35: -- | U35: -- | V35: -- | W35: -- | X35: -- | Y35: -- | Z35: --
I36: 0 | Q36: -- | R36: -- | S36: -- | T36: -- | U36: -- | V36: -- | W36: -- | X36: -- | Y36: -- | Z36: --
I37: 0 | Q37: -- | R37: -- | S37: -- | T37: -- | U37: -- | V37: -- | W37: -- | X37: -- | Y37: -- | Z37: --
I38: 0 | Q38: -- | R38: -- | S38: -- | T38: -- | U38: -- | V38: -- | W38: -- | X38: -- | Y38: -- | Z38: --
C40: (²) | D40: P - PROGRAMADA | AB40: =ROUND(SUM(AB17:AB39),2) -> 235.54

Sheet SA-02 (1)
B2: =+'TOT-0216'!B2 -> ANEXO V al Memorandum D.T.E.E. N° 687 / 2016
D4: ENTE NACIONAL REGULADOR
D5: DE LA ELECTRICIDAD
F8: SISTEMA DE TRANSPORTE DE ENERGÍA ELÉCTRICA POR DISTRIBUCIÓN TRONCAL - EPEN
F10: 2.2.- Salidas
B12: =+'TOT-0216'!B14 -> Desde el 01 al 29 de febrero de 2016
F14: Salida en 132 kV = | G14: 23.195 | H14: =50*'TOT-0216'!B13 -> 50 | J14: =IF(H14=50," ",IF(H14=100," Coeficiente duplicado por tasa de falla >4 Sal. x año/100 km.","REVISAR COEFICIENTE")) -> 
F15: Salida en 33 kV = | G15: 17.396 | H15: =25*'TOT-0216'!B13 -> 25 | J15: =IF(H15=25," ",IF(H15=50," Coeficiente duplicado por tasa de falla >4 Sal. x año/100 km.","REVISAR COEFICIENTE")) -> 
F16: Salida en 13,2 kV = | G16: 17.396 | H16: =20*'TOT-0216'!B13 -> 20 | J16: =IF(H16=20," ",IF(H16=40," Coeficiente duplicado por tasa de falla >4 Sal. x año/100 km.","REVISAR COEFICIENTE")) -> 
C17: 3 | D17: 4 | E17: 5 | F17: 6 | G17: 7 | H17: 8 | I17: 9 | J17: 10 | K17: 11 | L17: 12 | M17: 13 | N17: 14 | O17: 15 | P17: 16 | Q17: 17 | R17: 18 | S17: 19 | T17: 20 | U17: 21 | V17: 22
C18: N° | D18: INDISP | E18: ID EQUIPO | F18: ESTACIÓN TRANSFORMADORA | G18: EQUIPO | H18: U [kV] | I18: $/h | J18: Salida | K18: Entrada | L18: Hs Indisp. | M18: Minutos. Indisp. | N18: Tipo Sal.(²) | O18: AUT. | P18: K (U) | Q18: PENALIZ. PROGRAM. | R18: PENALIZAC. FORZADA Por Salida Hs. Restantes | T18: RESTANTE FORZADA | U18: Informó en Térm. | V18: TOTAL PENALIZAC.
C21: 4 | D21: 298683 | E21: 229 | F21: ARROYITO | G21: SALIDA PLAZA HUINCUL | H21: 132 | I21: =IF(OR(H21=132,H21=66),$G$14,IF(H21=33,$G$15,$G$16)) -> 23.195 | J21: 2016-02-11T09:19:00 | K21: 2016-02-11T14:50:00 | L21: =IF(J21="","",(K21-J21)*24) -> 5.516666667 | M21: =IF(K21="","",ROUND((K21-J21)*24*60,0)) -> 331 | N21: P | O21: =IF(N21="","",IF(OR(N21="P",N21="RP"),"--","NO")) -> -- | P21: =IF(OR(H21=132,H21=66),$H$14,IF(H21=33,$H$15,$H$16)) -> 50 | Q21: =IF(N21="P",I21*P21*0.1*ROUND(M21/60,2),"--") -> 640.182 | R21: =IF(O21="NO",IF(N21="F",I21*P21,"--"),"--") -> -- | S21: =IF(N21="F",I21*P21*ROUND(M21/60,2),"--") -> -- | T21: =IF(N21="RF",I21*P21*ROUND(M21/60,2),"--") -> -- | U21: =IF(F21="","","SI") -> SI | V21: =IF(F21="","",IF(H21="500/220",0,IF(U21="SI",SUM(Q21:T21),2*SUM(Q21:T21)))) -> 640.182
C22: 5 | D22: 298684 | E22: 230 | F22: ARROYITO | G22: SALIDA GRAN NEUQUEN | H22: 132 | I22: =IF(OR(H22=132,H22=66),$G$14,IF(H22=33,$G$15,$G$16)) -> 23.195 | J22: 2016-02-12T09:19:00 | K22: 2016-02-12T14:24:00 | L22: 5.083333333 | M22: 305 | N22: P | O22: =IF(N22="","",IF(OR(N22="P",N22="RP"),"--","NO")) -> -- | P22: 50 | Q22: 589.153 | R22: -- | S22: -- | T22: -- | U22: SI | V22: 589.153
I23: 17.396 | O23: =IF(N23="","",IF(OR(N23="P",N23="RP"),"--","NO")) ->  | P23: 20 | Q23: -- | R23: -- | S23: -- | T23: --
I24: 17.396 | P24: 20 | Q24: -- | R24: -- | S24: -- | T24: --
I25: 17.396 | P25: 20 | Q25: -- | R25: -- | S25: -- | T25: --
I26: 17.396 | P26: 20 | Q26: -- | R26: -- | S26: -- | T26: --
I27: 17.396 | P27: 20 | Q27: -- | R27: -- | S27: -- | T27: --
I28: 17.396 | P28: 20 | Q28: -- | R28: -- | S28: -- | T28: --
I29: 17.396 | P29: 20 | Q29: -- | R29: -- | S29: -- | T29: --
I30: 17.396 | P30: 20 | Q30: -- | R30: -- | S30: -- | T30: --
I31: 17.396 | P31: 20 | Q31: -- | R31: -- | S31: -- | T31: --
I32: 17.396 | P32: 20 | Q32: -- | R32: -- | S32: -- | T32: --
I33: 17.396 | P33: 20 | Q33: -- | R33: -- | S33: -- | T33: --
I34: 17.396 | P34: 20 | Q34: -- | R34: -- | S34: -- | T34: --
I35: 17.396 | P35: 20 | Q35: -- | R35: -- | S35: -- | T35: --
I36: 17.396 | P36: 20 | Q36: -- | R36: -- | S36: -- | T36: --
I37: 17.396 | P37: 20 | Q37: -- | R37: -- | S37: -- | T37: --
I38: 17.396 | P38: 20 | Q38: -- | R38: -- | S38: -- | T38: --
I39: 17.396 | P39: 20 | Q39: -- | R39: -- | S39: -- | T39: --
I40: 17.396 | P40: 20 | Q40: -- | R40: -- | S40: -- | T40: --
C42: (²) | D42: P - PROGRAMADA | V42: =ROUND(SUM(V19:V41),2) -> 1229.34

Sheet Tasa de Falla
B2: ='TOT-0216'!B2 -> ANEXO V al Memorandum D.T.E.E. N° 687 / 2016
A3: ENTE NACIONAL REGULADOR
A4: DE LA ELECTRICIDAD
B6: ENTE PROVINCIAL DE ENERGIA DEL NEUQUEN - EPEN
B8: (TRANSPORTISTA POR DISTRIBUCIÓN TRONCAL)
B10: INDISPONIBILIDADES FORZADAS DE LÍNEAS - TASA DE FALLA
B13: Correspondiente al mes de Febrero de 2016
D15: LÍNEAS | E15: U [kV[ | F15: Long. [km] | G15: Tipo | H15: ='[1]TASA DE FALLA'!DO15 -> 2015-02-01 | I15: ='[1]TASA DE FALLA'!DP15 -> 2015-03-01 | J15: ='[1]TASA DE FALLA'!DQ15 -> 2015-04-01 | K15: ='[1]TASA DE FALLA'!DR15 -> 2015-05-01 | L15: ='[1]TASA DE FALLA'!DS15 -> 2015-06-01 | M15: ='[1]TASA DE FALLA'!DT15 -> 2015-07-01 | N15: ='[1]TASA DE FALLA'!DU15 -> 2015-08-01 | O15: ='[1]TASA DE FALLA'!DV15 -> 2015-09-01 | P15: ='[1]TASA DE FALLA'!DW15 -> 2015-10-01 | Q15: ='[1]TASA DE FALLA'!DX15 -> 2015-11-01 | R15: ='[1]TASA DE FALLA'!DY15 -> 2015-12-01 | S15: ='[1]TASA DE FALLA'!DZ15 -> 2016-01-01 | T15: ='[1]TASA DE FALLA'!EA15 -> 2016-02-01
C19: ='[1]TASA DE FALLA'!C19 -> 1 | D19: ='[1]TASA DE FALLA'!D19 -> ARROYITO - CHARROYITO 1 | E19: ='[1]TASA DE FALLA'!E19 -> 132 | F19: ='[1]TASA DE FALLA'!F19 -> 1 | G19: ='[1]TASA DE FALLA'!G19 -> L | H19: =+IF('[1]TASA DE FALLA'!DO19=0,"",'[1]TASA DE FALLA'!DO19) ->  | I19: =+IF('[1]TASA DE FALLA'!DP19=0,"",'[1]TASA DE FALLA'!DP19) ->  | J19: =+IF('[1]TASA DE FALLA'!DQ19=0,"",'[1]TASA DE FALLA'!DQ19) ->  | K19: =+IF('[1]TASA DE FALLA'!DR19=0,"",'[1]TASA DE FALLA'!DR19) ->  | L19: =+IF('[1]TASA DE FALLA'!DS19=0,"",'[1]TASA DE FALLA'!DS19) ->  | M19: =+IF('[1]TASA DE FALLA'!DT19=0,"",'[1]TASA DE FALLA'!DT19) ->  | N19: =+IF('[1]TASA DE FALLA'!DU19=0,"",'[1]TASA DE FALLA'!DU19) ->  | O19: =+IF('[1]TASA DE FALLA'!DV19=0,"",'[1]TASA DE FALLA'!DV19) ->  | P19: =+IF('[1]TASA DE FALLA'!DW19=0,"",'[1]TASA DE FALLA'!DW19) ->  | Q19: =+IF('[1]TASA DE FALLA'!DX19=0,"",'[1]TASA DE FALLA'!DX19) ->  | R19: =+IF('[1]TASA DE FALLA'!DY19=0,"",'[1]TASA DE FALLA'!DY19) ->  | S19: =+IF('[1]TASA DE FALLA'!DZ19=0,"",'[1]TASA DE FALLA'!DZ19) -> 
C20: ='[1]TASA DE FALLA'!C20 -> 2 | D20: ='[1]TASA DE FALLA'!D20 -> ARROYITO - CHARROYITO 2 | E20: ='[1]TASA DE FALLA'!E20 -> 132 | F20: ='[1]TASA DE FALLA'!F20 -> 1 | G20: ='[1]TASA DE FALLA'!G20 -> L | H20: =+IF('[1]TASA DE FALLA'!DO20=0,"",'[1]TASA DE FALLA'!DO20) ->  | I20: =+IF('[1]TASA DE FALLA'!DP20=0,"",'[1]TASA DE FALLA'!DP20) ->  | J20: =+IF('[1]TASA DE FALLA'!DQ20=0,"",'[1]TASA DE FALLA'!DQ20) ->  | K20: =+IF('[1]TASA DE FALLA'!DR20=0,"",'[1]TASA DE FALLA'!DR20) ->  | L20: =+IF('[1]TASA DE FALLA'!DS20=0,"",'[1]TASA DE FALLA'!DS20) ->  | M20: =+IF('[1]TASA DE FALLA'!DT20=0,"",'[1]TASA DE FALLA'!DT20) ->  | N20: =+IF('[1]TASA DE FALLA'!DU20=0,"",'[1]TASA DE FALLA'!DU20) ->  | O20: =+IF('[1]TASA DE FALLA'!DV20=0,"",'[1]TASA DE FALLA'!DV20) ->  | P20: =+IF('[1]TASA DE FALLA'!DW20=0,"",'[1]TASA DE FALLA'!DW20) ->  | Q20: =+IF('[1]TASA DE FALLA'!DX20=0,"",'[1]TASA DE FALLA'!DX20) ->  | R20: =+IF('[1]TASA DE FALLA'!DY20=0,"",'[1]TASA DE FALLA'!DY20) ->  | S20: =+IF('[1]TASA DE FALLA'!DZ20=0,"",'[1]TASA DE FALLA'!DZ20) -> 
C21: ='[1]TASA DE FALLA'!C21 -> 3 | D21: ='[1]TASA DE FALLA'!D21 -> ARROYITO - CHARROYITO 3 | E21: ='[1]TASA DE FALLA'!E21 -> 132 | F21: ='[1]TASA DE FALLA'!F21 -> 1 | G21: ='[1]TASA DE FALLA'!G21 -> L | H21: =+IF('[1]TASA DE FALLA'!DO21=0,"",'[1]TASA DE FALLA'!DO21) ->  | I21: =+IF('[1]TASA DE FALLA'!DP21=0,"",'[1]TASA DE FALLA'!DP21) ->  | J21: =+IF('[1]TASA DE FALLA'!DQ21=0,"",'[1]TASA DE FALLA'!DQ21) ->  | K21: =+IF('[1]TASA DE FALLA'!DR21=0,"",'[1]TASA DE FALLA'!DR21) ->  | L21: =+IF('[1]TASA DE FALLA'!DS21=0,"",'[1]TASA DE FALLA'!DS21) ->  | M21: =+IF('[1]TASA DE FALLA'!DT21=0,"",'[1]TASA DE FALLA'!DT21) ->  | N21: =+IF('[1]TASA DE FALLA'!DU21=0,"",'[1]TASA DE FALLA'!DU21) ->  | O21: =+IF('[1]TASA DE FALLA'!DV21=0,"",'[1]TASA DE FALLA'!DV21) -> 1 | P21: =+IF('[1]TASA DE FALLA'!DW21=0,"",'[1]TASA DE FALLA'!DW21) ->  | Q21: =+IF('[1]TASA DE FALLA'!DX21=0,"",'[1]TASA DE FALLA'!DX21) ->  | R21: =+IF('[1]TASA DE FALLA'!DY21=0,"",'[1]TASA DE FALLA'!DY21) ->  | S21: =+IF('[1]TASA DE FALLA'!DZ21=0,"",'[1]TASA DE FALLA'!DZ21) -> 
C22: ='[1]TASA DE FALLA'!C22 -> 4 | D22: ='[1]TASA DE FALLA'!D22 -> ARROYITO - CHOCON 1 | E22: ='[1]TASA DE FALLA'!E22 -> 132 | F22: ='[1]TASA DE FALLA'!F22 -> 25 | G22: ='[1]TASA DE FALLA'!G22 -> L | H22: =+IF('[1]TASA DE FALLA'!DO22=0,"",'[1]TASA DE FALLA'!DO22) ->  | I22: =+IF('[1]TASA DE FALLA'!DP22=0,"",'[1]TASA DE FALLA'!DP22) ->  | J22: =+IF('[1]TASA DE FALLA'!DQ22=0,"",'[1]TASA DE FALLA'!DQ22) ->  | K22: =+IF('[1]TASA DE FALLA'!DR22=0,"",'[1]TASA DE FALLA'!DR22) ->  | L22: =+IF('[1]TASA DE FALLA'!DS22=0,"",'[1]TASA DE FALLA'!DS22) ->  | M22: =+IF('[1]TASA DE FALLA'!DT22=0,"",'[1]TASA DE FALLA'!DT22) ->  | N22: =+IF('[1]TASA DE FALLA'!DU22=0,"",'[1]TASA DE FALLA'!DU22) ->  | O22: =+IF('[1]TASA DE FALLA'!DV22=0,"",'[1]TASA DE FALLA'!DV22) ->  | P22: =+IF('[1]TASA DE FALLA'!DW22=0,"",'[1]TASA DE FALLA'!DW22) ->  | Q22: =+IF('[1]TASA DE FALLA'!DX22=0,"",'[1]TASA DE FALLA'!DX22) ->  | R22: =+IF('[1]TASA DE FALLA'!DY22=0,"",'[1]TASA DE FALLA'!DY22) ->  | S22: =+IF('[1]TASA DE FALLA'!DZ22=0,"",'[1]TASA DE FALLA'!DZ22) -> 
C23: ='[1]TASA DE FALLA'!C23 -> 5 | D23: ='[1]TASA DE FALLA'!D23 -> ARROYITO - CHOCON 2 | E23: ='[1]TASA DE FALLA'!E23 -> 132 | F23: ='[1]TASA DE FALLA'!F23 -> 25 | G23: ='[1]TASA DE FALLA'!G23 -> L | H23: =+IF('[1]TASA DE FALLA'!DO23=0,"",'[1]TASA DE FALLA'!DO23) ->  | I23: =+IF('[1]TASA DE FALLA'!DP23=0,"",'[1]TASA DE FALLA'!DP23) ->  | J23: =+IF('[1]TASA DE FALLA'!DQ23=0,"",'[1]TASA DE FALLA'!DQ23) ->  | K23: =+IF('[1]TASA DE FALLA'!DR23=0,"",'[1]TASA DE FALLA'!DR23) ->  | L23: =+IF('[1]TASA DE FALLA'!DS23=0,"",'[1]TASA DE FALLA'!DS23) ->  | M23: =+IF('[1]TASA DE FALLA'!DT23=0,"",'[1]TASA DE FALLA'!DT23) ->  | N23: =+IF('[1]TASA DE FALLA'!DU23=0,"",'[1]TASA DE FALLA'!DU23) ->  | O23: =+IF('[1]TASA DE FALLA'!DV23=0,"",'[1]TASA DE FALLA'!DV23) ->  | P23: =+IF('[1]TASA DE FALLA'!DW23=0,"",'[1]TASA DE FALLA'!DW23) ->  | Q23: =+IF('[1]TASA DE FALLA'!DX23=0,"",'[1]TASA DE FALLA'!DX23) ->  | R23: =+IF('[1]TASA DE FALLA'!DY23=0,"",'[1]TASA DE FALLA'!DY23) ->  | S23: =+IF('[1]TASA DE FALLA'!DZ23=0,"",'[1]TASA DE FALLA'!DZ23) -> 
C24: ='[1]TASA DE FALLA'!C24 -> 6 | D24: ='[1]TASA DE FALLA'!D24 -> ARROYITO - PIAP 1 | E24: ='[1]TASA DE FALLA'!E24 -> 132 | F24: ='[1]TASA DE FALLA'!F24 -> 2 | G24: ='[1]TASA DE FALLA'!G24 -> L | H24: =+IF('[1]TASA DE FALLA'!DO24=0,"",'[1]TASA DE FALLA'!DO24) ->  | I24: =+IF('[1]TASA DE FALLA'!DP24=0,"",'[1]TASA DE FALLA'!DP24) ->  | J24: =+IF('[1]TASA DE FALLA'!DQ24=0,"",'[1]TASA DE FALLA'!DQ24) ->  | K24: =+IF('[1]TASA DE FALLA'!DR24=0,"",'[1]TASA DE FALLA'!DR24) ->  | L24: =+IF('[1]TASA DE FALLA'!DS24=0,"",'[1]TASA DE FALLA'!DS24) ->  | M24: =+IF('[1]TASA DE FALLA'!DT24=0,"",'[1]TASA DE FALLA'!DT24) ->  | N24: =+IF('[1]TASA DE FALLA'!DU24=0,"",'[1]TASA DE FALLA'!DU24) ->  | O24: =+IF('[1]TASA DE FALLA'!DV24=0,"",'[1]TASA DE FALLA'!DV24) ->  | P24: =+IF('[1]TASA DE FALLA'!DW24=0,"",'[1]TASA DE FALLA'!DW24) ->  | Q24: =+IF('[1]TASA DE FALLA'!DX24=0,"",'[1]TASA DE FALLA'!DX24) ->  | R24: =+IF('[1]TASA DE FALLA'!DY24=0,"",'[1]TASA DE FALLA'!DY24) ->  | S24: =+IF('[1]TASA DE FALLA'!DZ24=0,"",'[1]TASA DE FALLA'!DZ24) -> 
C25: ='[1]TASA DE FALLA'!C25 -> 7 | D25: ='[1]TASA DE FALLA'!D25 -> ARROYITO - PIAP 2 | E25: ='[1]TASA DE FALLA'!E25 -> 132 | F25: ='[1]TASA DE FALLA'!F25 -> 2 | G25: ='[1]TASA DE FALLA'!G25 -> L | H25: =+IF('[1]TASA DE FALLA'!DO25=0,"",'[1]TASA DE FALLA'!DO25) ->  | I25: =+IF('[1]TASA DE FALLA'!DP25=0,"",'[1]TASA DE FALLA'!DP25) ->  | J25: =+IF('[1]TASA DE FALLA'!DQ25=0,"",'[1]TASA DE FALLA'!DQ25) ->  | K25: =+IF('[1]TASA DE FALLA'!DR25=0,"",'[1]TASA DE FALLA'!DR25) ->  | L25: =+IF('[1]TASA DE FALLA'!DS25=0,"",'[1]TASA DE FALLA'!DS25) ->  | M25: =+IF('[1]TASA DE FALLA'!DT25=0,"",'[1]TASA DE FALLA'!DT25) ->  | N25: =+IF('[1]TASA DE FALLA'!DU25=0,"",'[1]TASA DE FALLA'!DU25) ->  | O25: =+IF('[1]TASA DE FALLA'!DV25=0,"",'[1]TASA DE FALLA'!DV25) ->  | P25: =+IF('[1]TASA DE FALLA'!DW25=0,"",'[1]TASA DE FALLA'!DW25) ->  | Q25: =+IF('[1]TASA DE FALLA'!DX25=0,"",'[1]TASA DE FALLA'!DX25) ->  | R25: =+IF('[1]TASA DE FALLA'!DY25=0,"",'[1]TASA DE FALLA'!DY25) ->  | S25: =+IF('[1]TASA DE FALLA'!DZ25=0,"",'[1]TASA DE FALLA'!DZ25) -> 
C26: ='[1]TASA DE FALLA'!C26 -> 8 | D26: ='[1]TASA DE FALLA'!D26 -> ALTO VALLE - CENTENARIO | E26: ='[1]TASA DE FALLA'!E26 -> 132 | F26: ='[1]TASA DE FALLA'!F26 -> 17 | G26: ='[1]TASA DE FALLA'!G26 -> L | H26: =+IF('[1]TASA DE FALLA'!DO26=0,"",'[1]TASA DE FALLA'!DO26) ->  | I26: =+IF('[1]TASA DE FALLA'!DP26=0,"",'[1]TASA DE FALLA'!DP26) ->  | J26: =+IF('[1]TASA DE FALLA'!DQ26=0,"",'[1]TASA DE FALLA'!DQ26) ->  | K26: =+IF('[1]TASA DE FALLA'!DR26=0,"",'[1]TASA DE FALLA'!DR26) ->  | L26: =+IF('[1]TASA DE FALLA'!DS26=0,"",'[1]TASA DE FALLA'!DS26) ->  | M26: =+IF('[1]TASA DE FALLA'!DT26=0,"",'[1]TASA DE FALLA'!DT26) ->  | N26: =+IF('[1]TASA DE FALLA'!DU26=0,"",'[1]TASA DE FALLA'!DU26) -> 1 | O26: =+IF('[1]TASA DE FALLA'!DV26=0,"",'[1]TASA DE FALLA'!DV26) ->  | P26: =+IF('[1]TASA DE FALLA'!DW26=0,"",'[1]TASA DE FALLA'!DW26) ->  | Q26: =+IF('[1]TASA DE FALLA'!DX26=0,"",'[1]TASA DE FALLA'!DX26) ->  | R26: =+IF('[1]TASA DE FALLA'!DY26=0,"",'[1]TASA DE FALLA'!DY26) ->  | S26: =+IF('[1]TASA DE FALLA'!DZ26=0,"",'[1]TASA DE FALLA'!DZ26) -> 3
C27: ='[1]TASA DE FALLA'!C27 -> 10 | D27: ='[1]TASA DE FALLA'!D27 -> ALTO VALLE - COLONIA VALENTINA - ARROYITO | E27: ='[1]TASA DE FALLA'!E27 -> 132 | F27: ='[1]TASA DE FALLA'!F27 -> 58.9 | G27: ='[1]TASA DE FALLA'!G27 -> L | H27: =+IF('[1]TASA DE FALLA'!DO27=0,"",'[1]TASA DE FALLA'!DO27) ->  | I27: =+IF('[1]TASA DE FALLA'!DP27=0,"",'[1]TASA DE FALLA'!DP27) ->  | J27: =+IF('[1]TASA DE FALLA'!DQ27=0,"",'[1]TASA DE FALLA'!DQ27) ->  | K27: =+IF('[1]TASA DE FALLA'!DR27=0,"",'[1]TASA DE FALLA'!DR27) ->  | L27: =+IF('[1]TASA DE FALLA'!DS27=0,"",'[1]TASA DE FALLA'!DS27) ->  | M27: =+IF('[1]TASA DE FALLA'!DT27=0,"",'[1]TASA DE FALLA'!DT27) ->  | N27: =+IF('[1]TASA DE FALLA'!DU27=0,"",'[1]TASA DE FALLA'!DU27) ->  | O27: =+IF('[1]TASA DE FALLA'!DV27=0,"",'[1]TASA DE FALLA'!DV27) ->  | P27: =+IF('[1]TASA DE FALLA'!DW27=0,"",'[1]TASA DE FALLA'!DW27) ->  | Q27: =+IF('[1]TASA DE FALLA'!DX27=0,"",'[1]TASA DE FALLA'!DX27) ->  | R27: =+IF('[1]TASA DE FALLA'!DY27=0,"",'[1]TASA DE FALLA'!DY27) ->  | S27: =+IF('[1]TASA DE FALLA'!DZ27=0,"",'[1]TASA DE FALLA'!DZ27) -> 
C28: ='[1]TASA DE FALLA'!C28 -> 11 | D28: ='[1]TASA DE FALLA'!D28 -> CHOCON OESTE - CHOCON | E28: ='[1]TASA DE FALLA'!E28 -> 132 | F28: ='[1]TASA DE FALLA'!F28 -> 3.5 | G28: ='[1]TASA DE FALLA'!G28 -> L | H28: =+IF('[1]TASA DE FALLA'!DO28=0,"",'[1]TASA DE FALLA'!DO28) ->  | I28: =+IF('[1]TASA DE FALLA'!DP28=0,"",'[1]TASA DE FALLA'!DP28) ->  | J28: =+IF('[1]TASA DE FALLA'!DQ28=0,"",'[1]TASA DE FALLA'!DQ28) ->  | K28: =+IF('[1]TASA DE FALLA'!DR28=0,"",'[1]TASA DE FALLA'!DR28) ->  | L28: =+IF('[1]TASA DE FALLA'!DS28=0,"",'[1]TASA DE FALLA'!DS28) ->  | M28: =+IF('[1]TASA DE FALLA'!DT28=0,"",'[1]TASA DE FALLA'!DT28) ->  | N28: =+IF('[1]TASA DE FALLA'!DU28=0,"",'[1]TASA DE FALLA'!DU28) ->  | O28: =+IF('[1]TASA DE FALLA'!DV28=0,"",'[1]TASA DE FALLA'!DV28) ->  | P28: =+IF('[1]TASA DE FALLA'!DW28=0,"",'[1]TASA DE FALLA'!DW28) ->  | Q28: =+IF('[1]TASA DE FALLA'!DX28=0,"",'[1]TASA DE FALLA'!DX28) ->  | R28: =+IF('[1]TASA DE FALLA'!DY28=0,"",'[1]TASA DE FALLA'!DY28) ->  | S28: =+IF('[1]TASA DE FALLA'!DZ28=0,"",'[1]TASA DE FALLA'!DZ28) -> 
C29: ='[1]TASA DE FALLA'!C29 -> 18 | D29: ='[1]TASA DE FALLA'!D29 -> MEDANITOS - PTO. SECCIONAMIENTO | E29: ='[1]TASA DE FALLA'!E29 -> 132 | F29: ='[1]TASA DE FALLA'!F29 -> 41 | G29: ='[1]TASA DE FALLA'!G29 -> L | H29: =+IF('[1]TASA DE FALLA'!DO29=0,"",'[1]TASA DE FALLA'!DO29) ->  | I29: =+IF('[1]TASA DE FALLA'!DP29=0,"",'[1]TASA DE FALLA'!DP29) ->  | J29: =+IF('[1]TASA DE FALLA'!DQ29=0,"",'[1]TASA DE FALLA'!DQ29) ->  | K29: =+IF('[1]TASA DE FALLA'!DR29=0,"",'[1]TASA DE FALLA'!DR29) ->  | L29: =+IF('[1]TASA DE FALLA'!DS29=0,"",'[1]TASA DE FALLA'!DS29) ->  | M29: =+IF('[1]TASA DE FALLA'!DT29=0,"",'[1]TASA DE FALLA'!DT29) ->  | N29: =+IF('[1]TASA DE FALLA'!DU29=0,"",'[1]TASA DE FALLA'!DU29) ->  | O29: =+IF('[1]TASA DE FALLA'!DV29=0,"",'[1]TASA DE FALLA'!DV29) ->  | P29: =+IF('[1]TASA DE FALLA'!DW29=0,"",'[1]TASA DE FALLA'!DW29) ->  | Q29: =+IF('[1]TASA DE FALLA'!DX29=0,"",'[1]TASA DE FALLA'!DX29) ->  | R29: =+IF('[1]TASA DE FALLA'!DY29=0,"",'[1]TASA DE FALLA'!DY29) -> 1 | S29: =+IF('[1]TASA DE FALLA'!DZ29=0,"",'[1]TASA DE FALLA'!DZ29) -> 1
C30: ='[1]TASA DE FALLA'!C30 -> 19 | D30: ='[1]TASA DE FALLA'!D30 -> PIEDRA DEL AGUILA - EL CHOCON | E30: ='[1]TASA DE FALLA'!E30 -> 132 | F30: ='[1]TASA DE FALLA'!F30 -> 170 | G30: ='[1]TASA DE FALLA'!G30 -> L | H30: =+IF('[1]TASA DE FALLA'!DO30=0,"",'[1]TASA DE FALLA'!DO30) ->  | I30: =+IF('[1]TASA DE FALLA'!DP30=0,"",'[1]TASA DE FALLA'!DP30) ->  | J30: =+IF('[1]TASA DE FALLA'!DQ30=0,"",'[1]TASA DE FALLA'!DQ30) ->  | K30: =+IF('[1]TASA DE FALLA'!DR30=0,"",'[1]TASA DE FALLA'!DR30) ->  | L30: =+IF('[1]TASA DE FALLA'!DS30=0,"",'[1]TASA DE FALLA'!DS30) ->  | M30: =+IF('[1]TASA DE FALLA'!DT30=0,"",'[1]TASA DE FALLA'!DT30) ->  | N30: =+IF('[1]TASA DE FALLA'!DU30=0,"",'[1]TASA DE FALLA'!DU30) ->  | O30: =+IF('[1]TASA DE FALLA'!DV30=0,"",'[1]TASA DE FALLA'!DV30) ->  | P30: =+IF('[1]TASA DE FALLA'!DW30=0,"",'[1]TASA DE FALLA'!DW30) ->  | Q30: =+IF('[1]TASA DE FALLA'!DX30=0,"",'[1]TASA DE FALLA'!DX30) ->  | R30: =+IF('[1]TASA DE FALLA'!DY30=0,"",'[1]TASA DE FALLA'!DY30) ->  | S30: =+IF('[1]TASA DE FALLA'!DZ30=0,"",'[1]TASA DE FALLA'!DZ30) -> 
C31: ='[1]TASA DE FALLA'!C31 -> 20 | D31: ='[1]TASA DE FALLA'!D31 -> PLAYA PLANICIE BANDERITA - PCIE. BANDERITA | E31: ='[1]TASA DE FALLA'!E31 -> 132 | F31: ='[1]TASA DE FALLA'!F31 -> 1.5 | G31: ='[1]TASA DE FALLA'!G31 -> L | H31: =+IF('[1]TASA DE FALLA'!DO31=0,"",'[1]TASA DE FALLA'!DO31) ->  | I31: =+IF('[1]TASA DE FALLA'!DP31=0,"",'[1]TASA DE FALLA'!DP31) ->  | J31: =+IF('[1]TASA DE FALLA'!DQ31=0,"",'[1]TASA DE FALLA'!DQ31) ->  | K31: =+IF('[1]TASA DE FALLA'!DR31=0,"",'[1]TASA DE FALLA'!DR31) ->  | L31: =+IF('[1]TASA DE FALLA'!DS31=0,"",'[1]TASA DE FALLA'!DS31) ->  | M31: =+IF('[1]TASA DE FALLA'!DT31=0,"",'[1]TASA DE FALLA'!DT31) ->  | N31: =+IF('[1]TASA DE FALLA'!DU31=0,"",'[1]TASA DE FALLA'!DU31) ->  | O31: =+IF('[1]TASA DE FALLA'!DV31=0,"",'[1]TASA DE FALLA'!DV31) ->  | P31: =+IF('[1]TASA DE FALLA'!DW31=0,"",'[1]TASA DE FALLA'!DW31) ->  | Q31: =+IF('[1]TASA DE FALLA'!DX31=0,"",'[1]TASA DE FALLA'!DX31) ->  | R31: =+IF('[1]TASA DE FALLA'!DY31=0,"",'[1]TASA DE FALLA'!DY31) ->  | S31: =+IF('[1]TASA DE FALLA'!DZ31=0,"",'[1]TASA DE FALLA'!DZ31) -> 
C32: ='[1]TASA DE FALLA'!C32 -> 21 | D32: ='[1]TASA DE FALLA'!D32 -> PTO. SECCIONAMIENTO - PTO. HERNANDEZ | E32: ='[1]TASA DE FALLA'!E32 -> 132 | F32: ='[1]TASA DE FALLA'!F32 -> 89 | G32: ='[1]TASA DE FALLA'!G32 -> L | H32: =+IF('[1]TASA DE FALLA'!DO32=0,"",'[1]TASA DE FALLA'!DO32) -> XXXX | I32: =+IF('[1]TASA DE FALLA'!DP32=0,"",'[1]TASA DE FALLA'!DP32) -> XXXX | J32: =+IF('[1]TASA DE FALLA'!DQ32=0,"",'[1]TASA DE FALLA'!DQ32) -> XXXX | K32: =+IF('[1]TASA DE FALLA'!DR32=0,"",'[1]TASA DE FALLA'!DR32) -> XXXX | L32: =+IF('[1]TASA DE FALLA'!DS32=0,"",'[1]TASA DE FALLA'!DS32) -> XXXX | M32: =+IF('[1]TASA DE FALLA'!DT32=0,"",'[1]TASA DE FALLA'!DT32) -> XXXX | N32: =+IF('[1]TASA DE FALLA'!DU32=0,"",'[1]TASA DE FALLA'!DU32) -> XXXX | O32: =+IF('[1]TASA DE FALLA'!DV32=0,"",'[1]TASA DE FALLA'!DV32) -> XXXX | P32: =+IF('[1]TASA DE FALLA'!DW32=0,"",'[1]TASA DE FALLA'!DW32) -> XXXX | Q32: =+IF('[1]TASA DE FALLA'!DX32=0,"",'[1]TASA DE FALLA'!DX32) -> XXXX | R32: =+IF('[1]TASA DE FALLA'!DY32=0,"",'[1]TASA DE FALLA'!DY32) -> XXXX | S32: =+IF('[1]TASA DE FALLA'!DZ32=0,"",'[1]TASA DE FALLA'!DZ32) -> XXXX
C33: ='[1]TASA DE FALLA'!C33 -> 22 | D33: ='[1]TASA DE FALLA'!D33 -> PTO. SECCIONAMIENTO - SEÑAL PICADA | E33: ='[1]TASA DE FALLA'!E33 -> 132 | F33: ='[1]TASA DE FALLA'!F33 -> 18 | G33: ='[1]TASA DE FALLA'!G33 -> L | H33: =+IF('[1]TASA DE FALLA'!DO33=0,"",'[1]TASA DE FALLA'!DO33) ->  | I33: =+IF('[1]TASA DE FALLA'!DP33=0,"",'[1]TASA DE FALLA'!DP33) ->  | J33: =+IF('[1]TASA DE FALLA'!DQ33=0,"",'[1]TASA DE FALLA'!DQ33) ->  | K33: =+IF('[1]TASA DE FALLA'!DR33=0,"",'[1]TASA DE FALLA'!DR33) ->  | L33: =+IF('[1]TASA DE FALLA'!DS33=0,"",'[1]TASA DE FALLA'!DS33) ->  | M33: =+IF('[1]TASA DE FALLA'!DT33=0,"",'[1]TASA DE FALLA'!DT33) ->  | N33: =+IF('[1]TASA DE FALLA'!DU33=0,"",'[1]TASA DE FALLA'!DU33) ->  | O33: =+IF('[1]TASA DE FALLA'!DV33=0,"",'[1]TASA DE FALLA'!DV33) ->  | P33: =+IF('[1]TASA DE FALLA'!DW33=0,"",'[1]TASA DE FALLA'!DW33) ->  | Q33: =+IF('[1]TASA DE FALLA'!DX33=0,"",'[1]TASA DE FALLA'!DX33) ->  | R33: =+IF('[1]TASA DE FALLA'!DY33=0,"",'[1]TASA DE FALLA'!DY33) ->  | S33: =+IF('[1]TASA DE FALLA'!DZ33=0,"",'[1]TASA DE FALLA'!DZ33) -> 
C34: ='[1]TASA DE FALLA'!C34 -> 29 | D34: ='[1]TASA DE FALLA'!D34 -> PUESTO HERNANDEZ - CHIUHIDO II | E34: ='[1]TASA DE FALLA'!E34 -> 132 | F34: ='[1]TASA DE FALLA'!F34 -> 19.5 | G34: ='[1]TASA DE FALLA'!G34 -> L | H34: =+IF('[1]TASA DE FALLA'!DO34=0,"",'[1]TASA DE FALLA'!DO34) ->  | I34: =+IF('[1]TASA DE FALLA'!DP34=0,"",'[1]TASA DE FALLA'!DP34) ->  | J34: =+IF('[1]TASA DE FALLA'!DQ34=0,"",'[1]TASA DE FALLA'!DQ34) ->  | K34: =+IF('[1]TASA DE FALLA'!DR34=0,"",'[1]TASA DE FALLA'!DR34) ->  | L34: =+IF('[1]TASA DE FALLA'!DS34=0,"",'[1]TASA DE FALLA'!DS34) ->  | M34: =+IF('[1]TASA DE FALLA'!DT34=0,"",'[1]TASA DE FALLA'!DT34) ->  | N34: =+IF('[1]TASA DE FALLA'!DU34=0,"",'[1]TASA DE FALLA'!DU34) ->  | O34: =+IF('[1]TASA DE FALLA'!DV34=0,"",'[1]TASA DE FALLA'!DV34) ->  | P34: =+IF('[1]TASA DE FALLA'!DW34=0,"",'[1]TASA DE FALLA'!DW34) ->  | Q34: =+IF('[1]TASA DE FALLA'!DX34=0,"",'[1]TASA DE FALLA'!DX34) ->  | R34: =+IF('[1]TASA DE FALLA'!DY34=0,"",'[1]TASA DE FALLA'!DY34) ->  | S34: =+IF('[1]TASA DE FALLA'!DZ34=0,"",'[1]TASA DE FALLA'!DZ34) -> 
C35: ='[1]TASA DE FALLA'!C35 -> 30 | D35: ='[1]TASA DE FALLA'!D35 -> CHIUHIDO II - EL TRAPIAL | E35: ='[1]TASA DE FALLA'!E35 -> 132 | F35: ='[1]TASA DE FALLA'!F35 -> 4.9 | G35: ='[1]TASA DE FALLA'!G35 -> L | H35: =+IF('[1]TASA DE FALLA'!DO35=0,"",'[1]TASA DE FALLA'!DO35) ->  | I35: =+IF('[1]TASA DE FALLA'!DP35=0,"",'[1]TASA DE FALLA'!DP35) ->  | J35: =+IF('[1]TASA DE FALLA'!DQ35=0,"",'[1]TASA DE FALLA'!DQ35) ->  | K35: =+IF('[1]TASA DE FALLA'!DR35=0,"",'[1]TASA DE FALLA'!DR35) ->  | L35: =+IF('[1]TASA DE FALLA'!DS35=0,"",'[1]TASA DE FALLA'!DS35) ->  | M35: =+IF('[1]TASA DE FALLA'!DT35=0,"",'[1]TASA DE FALLA'!DT35) ->  | N35: =+IF('[1]TASA DE FALLA'!DU35=0,"",'[1]TASA DE FALLA'!DU35) ->  | O35: =+IF('[1]TASA DE FALLA'!DV35=0,"",'[1]TASA DE FALLA'!DV35) ->  | P35: =+IF('[1]TASA DE FALLA'!DW35=0,"",'[1]TASA DE FALLA'!DW35) ->  | Q35: =+IF('[1]TASA DE FALLA'!DX35=0,"",'[1]TASA DE FALLA'!DX35) ->  | R35: =+IF('[1]TASA DE FALLA'!DY35=0,"",'[1]TASA DE FALLA'!DY35) ->  | S35: =+IF('[1]TASA DE FALLA'!DZ35=0,"",'[1]TASA DE FALLA'!DZ35) -> 
C36: ='[1]TASA DE FALLA'!C36 -> 31 | D36: ='[1]TASA DE FALLA'!D36 -> EL TRAPIAL - LOMA DE LA LATA 1 | E36: ='[1]TASA DE FALLA'!E36 -> 132 | F36: ='[1]TASA DE FALLA'!F36 -> 142 | G36: ='[1]TASA DE FALLA'!G36 -> L | H36: =+IF('[1]TASA DE FALLA'!DO36=0,"",'[1]TASA DE FALLA'!DO36) ->  | I36: =+IF('[1]TASA DE FALLA'!DP36=0,"",'[1]TASA DE FALLA'!DP36) ->  | J36: =+IF('[1]TASA DE FALLA'!DQ36=0,"",'[1]TASA DE FALLA'!DQ36) ->  | K36: =+IF('[1]TASA DE FALLA'!DR36=0,"",'[1]TASA DE FALLA'!DR36) ->  | L36: =+IF('[1]TASA DE FALLA'!DS36=0,"",'[1]TASA DE FALLA'!DS36) ->  | M36: =+IF('[1]TASA DE FALLA'!DT36=0,"",'[1]TASA DE FALLA'!DT36) ->  | N36: =+IF('[1]TASA DE FALLA'!DU36=0,"",'[1]TASA DE FALLA'!DU36) ->  | O36: =+IF('[1]TASA DE FALLA'!DV36=0,"",'[1]TASA DE FALLA'!DV36) ->  | P36: =+IF('[1]TASA DE FALLA'!DW36=0,"",'[1]TASA DE FALLA'!DW36) ->  | Q36: =+IF('[1]TASA DE FALLA'!DX36=0,"",'[1]TASA DE FALLA'!DX36) ->  | R36: =+IF('[1]TASA DE FALLA'!DY36=0,"",'[1]TASA DE FALLA'!DY36) ->  | S36: =+IF('[1]TASA DE FALLA'!DZ36=0,"",'[1]TASA DE FALLA'!DZ36) -> 1
C37: ='[1]TASA DE FALLA'!C37 -> 32 | D37: ='[1]TASA DE FALLA'!D37 -> EL TRAPIAL - LOMA DE LA LATA 2 | E37: ='[1]TASA DE FALLA'!E37 -> 132 | F37: ='[1]TASA DE FALLA'!F37 -> 142 | G37: ='[1]TASA DE FALLA'!G37 -> L | H37: =+IF('[1]TASA DE FALLA'!DO37=0,"",'[1]TASA DE FALLA'!DO37) ->  | I37: =+IF('[1]TASA DE FALLA'!DP37=0,"",'[1]TASA DE FALLA'!DP37) ->  | J37: =+IF('[1]TASA DE FALLA'!DQ37=0,"",'[1]TASA DE FALLA'!DQ37) ->  | K37: =+IF('[1]TASA DE FALLA'!DR37=0,"",'[1]TASA DE FALLA'!DR37) ->  | L37: =+IF('[1]TASA DE FALLA'!DS37=0,"",'[1]TASA DE FALLA'!DS37) ->  | M37: =+IF('[1]TASA DE FALLA'!DT37=0,"",'[1]TASA DE FALLA'!DT37) ->  | N37: =+IF('[1]TASA DE FALLA'!DU37=0,"",'[1]TASA DE FALLA'!DU37) ->  | O37: =+IF('[1]TASA DE FALLA'!DV37=0,"",'[1]TASA DE FALLA'!DV37) ->  | P37: =+IF('[1]TASA DE FALLA'!DW37=0,"",'[1]TASA DE FALLA'!DW37) ->  | Q37: =+IF('[1]TASA DE FALLA'!DX37=0,"",'[1]TASA DE FALLA'!DX37) ->  | R37: =+IF('[1]TASA DE FALLA'!DY37=0,"",'[1]TASA DE FALLA'!DY37) ->  | S37: =+IF('[1]TASA DE FALLA'!DZ37=0,"",'[1]TASA DE FALLA'!DZ37) -> 1
C38: ='[1]TASA DE FALLA'!C38 -> 33 | D38: ='[1]TASA DE FALLA'!D38 -> PTO. SECCIONAMIENTO - RINCON DE LOS SAUCES | E38: ='[1]TASA DE FALLA'!E38 -> 132 | F38: ='[1]TASA DE FALLA'!F38 -> 67.705 | G38: ='[1]TASA DE FALLA'!G38 -> L | H38: =+IF('[1]TASA DE FALLA'!DO38=0,"",'[1]TASA DE FALLA'!DO38) ->  | I38: =+IF('[1]TASA DE FALLA'!DP38=0,"",'[1]TASA DE FALLA'!DP38) ->  | J38: =+IF('[1]TASA DE FALLA'!DQ38=0,"",'[1]TASA DE FALLA'!DQ38) ->  | K38: =+IF('[1]TASA DE FALLA'!DR38=0,"",'[1]TASA DE FALLA'!DR38) ->  | L38: =+IF('[1]TASA DE FALLA'!DS38=0,"",'[1]TASA DE FALLA'!DS38) ->  | M38: =+IF('[1]TASA DE FALLA'!DT38=0,"",'[1]TASA DE FALLA'!DT38) ->  | N38: =+IF('[1]TASA DE FALLA'!DU38=0,"",'[1]TASA DE FALLA'!DU38) ->  | O38: =+IF('[1]TASA DE FALLA'!DV38=0,"",'[1]TASA DE FALLA'!DV38) ->  | P38: =+IF('[1]TASA DE FALLA'!DW38=0,"",'[1]TASA DE FALLA'!DW38) ->  | Q38: =+IF('[1]TASA DE FALLA'!DX38=0,"",'[1]TASA DE FALLA'!DX38) ->  | R38: =+IF('[1]TASA DE FALLA'!DY38=0,"",'[1]TASA DE FALLA'!DY38) ->  | S38: =+IF('[1]TASA DE FALLA'!DZ38=0,"",'[1]TASA DE FALLA'!DZ38) -> 1
C39: ='[1]TASA DE FALLA'!C39 -> 34 | D39: ='[1]TASA DE FALLA'!D39 -> PTO. HERNANDEZ - RINCON DE LOS SAUCES | E39: ='[1]TASA DE FALLA'!E39 -> 132 | F39: ='[1]TASA DE FALLA'!F39 -> 21 | G39: ='[1]TASA DE FALLA'!G39 -> L | H39: =+IF('[1]TASA DE FALLA'!DO39=0,"",'[1]TASA DE FALLA'!DO39) -> 1 | I39: =+IF('[1]TASA DE FALLA'!DP39=0,"",'[1]TASA DE FALLA'!DP39) ->  | J39: =+IF('[1]TASA DE FALLA'!DQ39=0,"",'[1]TASA DE FALLA'!DQ39) ->  | K39: =+IF('[1]TASA DE FALLA'!DR39=0,"",'[1]TASA DE FALLA'!DR39) ->  | L39: =+IF('[1]TASA DE FALLA'!DS39=0,"",'[1]TASA DE FALLA'!DS39) ->  | M39: =+IF('[1]TASA DE FALLA'!DT39=0,"",'[1]TASA DE FALLA'!DT39) ->  | N39: =+IF('[1]TASA DE FALLA'!DU39=0,"",'[1]TASA DE FALLA'!DU39) ->  | O39: =+IF('[1]TASA DE FALLA'!DV39=0,"",'[1]TASA DE FALLA'!DV39) ->  | P39: =+IF('[1]TASA DE FALLA'!DW39=0,"",'[1]TASA DE FALLA'!DW39) ->  | Q39: =+IF('[1]TASA DE FALLA'!DX39=0,"",'[1]TASA DE FALLA'!DX39) ->  | R39: =+IF('[1]TASA DE FALLA'!DY39=0,"",'[1]TASA DE FALLA'!DY39) ->  | S39: =+IF('[1]TASA DE FALLA'!DZ39=0,"",'[1]TASA DE FALLA'!DZ39) -> 
H40: =+IF('[1]TASA DE FALLA'!DO40=0,"",'[1]TASA DE FALLA'!DO40) ->  | I40: =+IF('[1]TASA DE FALLA'!DP40=0,"",'[1]TASA DE FALLA'!DP40) ->  | J40: =+IF('[1]TASA DE FALLA'!DQ40=0,"",'[1]TASA DE FALLA'!DQ40) ->  | K40: =+IF('[1]TASA DE FALLA'!DR40=0,"",'[1]TASA DE FALLA'!DR40) ->  | L40: =+IF('[1]TASA DE FALLA'!DS40=0,"",'[1]TASA DE FALLA'!DS40) ->  | M40: =+IF('[1]TASA DE FALLA'!DT40=0,"",'[1]TASA DE FALLA'!DT40) ->  | N40: =+IF('[1]TASA DE FALLA'!DU40=0,"",'[1]TASA DE FALLA'!DU40) ->  | O40: =+IF('[1]TASA DE FALLA'!DV40=0,"",'[1]TASA DE FALLA'!DV40) ->  | P40: =+IF('[1]TASA DE FALLA'!DW40=0,"",'[1]TASA DE FALLA'!DW40) ->  | Q40: =+IF('[1]TASA DE FALLA'!DX40=0,"",'[1]TASA DE FALLA'!DX40) ->  | R40: =+IF('[1]TASA DE FALLA'!DY40=0,"",'[1]TASA DE FALLA'!DY40) ->  | S40: =+IF('[1]TASA DE FALLA'!DZ40=0,"",'[1]TASA DE FALLA'!DZ40) -> 
E41: Longitud Total | F41: =SUM(F19:F40)-F32 -> 764.005
G42: Indisponibilidades Forzadas | H42: =SUM(H19:H40) -> 1 | I42: =SUM(I19:I40) -> 0 | J42: =SUM(J19:J40) -> 0 | K42: 0 | L42: 0 | M42: 0 | N42: 1 | O42: 1 | P42: 0 | Q42: 0 | R42: 1 | S42: 7
G43: TASA DE FALLA | H43: ='[1]TASA DE FALLA'!DO43 -> 1.96 | I43: ='[1]TASA DE FALLA'!DP43 -> 1.83 | J43: ='[1]TASA DE FALLA'!DQ43 -> 1.57 | K43: ='[1]TASA DE FALLA'!DR43 -> 1.44 | L43: ='[1]TASA DE FALLA'!DS43 -> 1.05 | M43: ='[1]TASA DE FALLA'!DT43 -> 1.05 | N43: ='[1]TASA DE FALLA'!DU43 -> 1.05 | O43: ='[1]TASA DE FALLA'!DV43 -> 1.05 | P43: ='[1]TASA DE FALLA'!DW43 -> 1.05 | Q43: ='[1]TASA DE FALLA'!DX43 -> 0.52 | R43: ='[1]TASA DE FALLA'!DY43 -> 0.52 | S43: ='[1]TASA DE FALLA'!DZ43 -> 0.65 | T43: ='[1]TASA DE FALLA'!EA43 -> 1.44
H45: TASA DE FALLA | J45: =+T43 -> 1.44 | L45: SALIDAS x AÑO / 100 km

Sheet DATO
A1: Mes | B1: Mes | C1: Dia | D1: Año | F1: E.N.R.E.
A2: enero | B2: 01 | C2: 31 | D2: 2006
A3: febrero | B3: 02 | C3: =IF(MOD(E14,4)=0,29,28) -> 29 | D3: =+D2+1 -> 2007
A4: marzo | B4: 03 | C4: 31 | D4: 2008
A5: abril | B5: 04 | C5: 30 | D5: 2009
A6: mayo | B6: 05 | C6: 31 | D6: 2010
A7: junio | B7: 06 | C7: 30 | D7: 2011
A8: julio | B8: 07 | C8: 31 | D8: 2012
A9: agosto | B9: 08 | C9: 31 | D9: 2013
A10: septiembre | B10: 09 | C10: 30 | D10: 2014
A11: octubre | B11: 10 | C11: 31 | D11: 2015
A12: noviembre | B12: 11 | C12: 30 | D12: 2016
A13: diciembre | B13: 12 | C13: 31 | I13: Total
A14: 11 | B14: 2 | C14: =CELL("CONTENIDO",OFFSET(A1,B14,0)) -> febrero | D14: =CELL("CONTENIDO",OFFSET(C1,B14,0)) -> 29 | E14: =CELL("CONTENIDO",OFFSET(D1,A14,0)) -> 2016 | F14: ="Desde el 01 al " & D14 & " de " & C14 & " de " & E14 -> Desde el 01 al 29 de febrero de 2016 | G14: =CELL("CONTENIDO",OFFSET(B1,B14,0)) -> 02 | H14: =RIGHT(E14,2) -> 16 | I14: B14
B15: ="\\rugor\files\Transporte\Transporte\AA PROCESO AUT ARCHIVOS J\EPEN_TRONCAL\" &E14 -> \\rugor\files\Transporte\Transporte\AA PROCESO AUT ARCHIVOS J\EPEN_TRONCAL\2016 | G15: ="J"&G14&H14&"PEN" -> J0216PEN
B16: ="\\rugor\files\Transporte\transporte\AA PROCESO AUT\INTERCAMBIO\" &H14&G14 -> \\rugor\files\Transporte\transporte\AA PROCESO AUT\INTERCAMBIO\1602
A17: Hoja | B17: FilaInicio | C17: FilasPlantilla | D17: Columnas | E17: NombreHoja | F17: OrigenDeDatos | G17: Col00 | H17: Col01 | I17: Col02 | J17: Col03 | K17: Col04 | L17: Col05 | M17: Col06 | N17: Col07 | O17: Col08 | P17: Col09 | Q17: Col10 | R17: Col11 | S17: Col12 | T17: Col13 | U17: Col14 | V17: Col15 | W17: FILHTOTAL | X17: COLHTOTAL | Y17: FILHCALC | Z17: COLHCALC | AA17: FILTRANSP | AB17: COLTRANSP | AC17: COL TSAL
A18: MODELO L | B18: 19 | C18: 19 | D18: 12 | E18: ="LI-" & $G$14 -> LI-02 | F18: EPEN_INDISPONIBILIDADES_LINEAS_EPEN.XLS | G18: 3 | H18: 5 | I18: 4 | J18: 6 | K18: 7 | L18: 8 | M18: 0 | N18: 10 | O18: 11 | P18: 14 | Q18: 16 | R18: 27 | S18: 15 | T18: 0 | U18: 0 | V18: 0 | W18: 18 | X18: 9 | Y18: 40 | Z18: 28 | AA18: 17 | AB18: 28 | AC18: 14
A19: MODELO T | B19: 22 | C19: 19 | D19: 13 | E19: ="T-" & $G$14 -> T-02 | F19: EPEN_INDISPONIBILIDADES_TRAFOS_EPEN.XLS | G19: 3 | H19: 5 | I19: 4 | J19: 6 | K19: 7 | L19: 8 | M19: 9 | N19: 11 | O19: 12 | P19: 15 | Q19: 16 | R19: 18 | S19: 28 | T19: 17 | U19: 0 | V19: 0 | W19: 22 | X19: 9 | Y19: 43 | Z19: 29 | AA19: 20 | AB19: 29 | AC19: 15
A20: MODELO S | B20: 21 | C20: 19 | D20: 10 | E20: ="SA-" & $G$14 -> SA-02 | F20: EPEN_INDISPONIBILIDADES_SALIDAS_EPEN.XLS | G20: 3 | H20: 5 | I20: 4 | J20: 6 | K20: 7 | L20: 8 | M20: 10 | N20: 11 | O20: 14 | P20: 15 | Q20: 21 | R20: 0 | S20: 0 | T20: 0 | U20: 0 | V20: 0 | W20: 24 | X20: 9 | Y20: 42 | Z20: 22 | AA20: 19 | AB20: 22 | AC20: 14
A21: MODELO VST | B21: 19 | C21: 24 | D21: 4 | E21: ="CAUSAS-VST-" & $G$14 -> CAUSAS-VST-02 | F21: EPEN_CAUSAS_VST.XLS | G21: 3 | H21: 4 | I21: 5 | J21: 6 | K21: 7 | L21: 0 | M21: 0 | N21: 0 | O21: 0 | P21: 0 | Q21: 0 | R21: 0 | S21: 0 | T21: 0 | U21: 0 | V21: 0 | W21: 999 | X21: 999 | Y21: 0 | Z21: 0 | AA21: 0 | AB21: 0 | AC21: 0
